fUST/lending_fUST_20260527
["ID","MTS","AMOUNT","RATE_DAILY","PERIOD"]
[423095870,1779841843000,-500.0,9.523e-05,2]
[423095867,1779841843000,-397.64,9.523e-05,2]
[423095876,1779841843000,-500.0,9.523e-05,2]
[423095981,1779841844000,-500.0,8.219e-05,2]
[423095984,1779841844000,-174.71372,8.493e-05,2]
[423096004,1779841844000,-249.11504851,8.767e-05,2]
[423096006,1779841844000,-500.0,8.767e-05,2]
[423096002,1779841844000,-500.0,8.493e-05,2]
[423095995,1779841844000,-500.0,8.219e-05,2]
[423095997,1779841844000,-180.52951233,8.493e-05,2]
[423096008,1779841844000,-500.0,8.975e-05,2]
[423096000,1779841844000,-144.75676767,8.493e-05,2]
[423096012,1779841844000,-500.0,9.523e-05,2]
[423096014,1779841844000,-879.60318382,0.0001045,2]
[423096010,1779841844000,-500.0,9.249e-05,2]
[423096331,1779841846000,-14438.93514429,0.0001045,2]
[423096329,1779841846000,-222.08141941,8.668e-05,2]
[423096322,1779841846000,-220.91858059,8.668e-05,2]
[423096320,1779841846000,-577.80576641,8.219e-05,2]
[423098429,1779843032000,-500.0,8.219e-05,2]
[423098423,1779843032000,-500.0,8.219e-05,2]
[423098417,1779843032000,-500.0,8.219e-05,2]
[423098421,1779843032000,-500.0,8.219e-05,2]
[423098419,1779843032000,-500.0,8.219e-05,2]
[423098434,1779843032000,-500.0,8.219e-05,2]
[423098435,1779843032000,-500.0,8.219e-05,2]
[423098431,1779843032000,-500.0,8.219e-05,2]
[423098425,1779843032000,-500.0,8.219e-05,2]
[423098444,1779843032000,-500.0,8.219e-05,2]
[423098442,1779843032000,-500.0,8.219e-05,2]
[423098432,1779843032000,-500.0,8.219e-05,2]
[423098415,1779843032000,-500.0,8.219e-05,2]
[423098407,1779843032000,-500.0,8.218e-05,2]
[423098413,1779843032000,-500.0,8.219e-05,2]
[423098411,1779843032000,-578.18556027,8.219e-05,2]
[423098409,1779843032000,-334.64986986,8.218e-05,2]
[423098405,1779843032000,-500.0,8.218e-05,2]
[423098394,1779843032000,-500.0,8.218e-05,2]
[423098392,1779843032000,-387.77571442,7.889e-05,2]
[423098403,1779843032000,-500.0,8.218e-05,2]
[423098437,1779843032000,-500.0,8.219e-05,2]
[423098400,1779843032000,-500.0,8.218e-05,2]
[423098389,1779843032000,-5000.0,7.81e-05,2]
[423098396,1779843032000,-531.17885231,8.218e-05,2]
[423098401,1779843032000,-500.0,8.218e-05,2]
[423098398,1779843032000,-500.0,8.218e-05,2]
[423098427,1779843032000,-500.0,8.219e-05,2]
[423098436,1779843032000,-302.95576371,8.219e-05,2]
[423098462,1779843032000,-500.0,8.219e-05,2]
[423098441,1779843032000,-500.0,8.219e-05,2]
[423098464,1779843032000,-500.0,8.219e-05,2]
[423098463,1779843032000,-500.0,8.219e-05,2]
[423098467,1779843032000,-500.0,8.219e-05,2]
[423098465,1779843032000,-194.05068141,8.219e-05,2]
[423098466,1779843032000,-305.94931859,8.219e-05,2]
[423098471,1779843032000,-3.11884429,8.219e-05,2]
[423098470,1779843032000,-500.0,8.219e-05,2]
[423098469,1779843032000,-500.0,8.219e-05,2]
[423098461,1779843032000,-500.0,8.219e-05,2]
[423098468,1779843032000,-500.0,8.219e-05,2]
[423098459,1779843032000,-500.0,8.219e-05,2]
[423098460,1779843032000,-500.0,8.219e-05,2]
[423098455,1779843032000,-500.0,8.219e-05,2]
[423098445,1779843032000,-500.0,8.219e-05,2]
[423098452,1779843032000,-500.0,8.219e-05,2]
[423098453,1779843032000,-500.0,8.219e-05,2]
[423098456,1779843032000,-500.0,8.219e-05,2]
[423098451,1779843032000,-500.0,8.219e-05,2]
[423098450,1779843032000,-500.0,8.219e-05,2]
[423098458,1779843032000,-504.35,8.219e-05,2]
[423098449,1779843032000,-500.0,8.219e-05,2]
[423098446,1779843032000,-500.0,8.219e-05,2]
[423098457,1779843032000,-500.0,8.219e-05,2]
[423098448,1779843032000,-500.0,8.219e-05,2]
[423098447,1779843032000,-500.0,8.219e-05,2]
[423098443,1779843032000,-500.0,8.219e-05,2]
[423098440,1779843032000,-500.0,8.219e-05,2]
[423098439,1779843032000,-500.0,8.219e-05,2]
[423098454,1779843032000,-473.45751594,8.219e-05,2]
[423098558,1779843039000,-496.88115571,8.219e-05,2]
[423098561,1779843039000,-500.0,8.219e-05,2]
[423098566,1779843039000,-500.0,8.219e-05,2]
[423098563,1779843039000,-500.0,8.219e-05,2]
[423098568,1779843039000,-500.0,8.219e-05,2]
[423098571,1779843039000,-224.35903808,8.219e-05,2]
[423098806,1779843041000,-325.99178291,8.137e-05,2]
[423098798,1779843041000,-359.99275684,8.137e-05,2]
[423099070,1779843044000,-500.0,8.219e-05,2]
[423099082,1779843044000,-500.0,8.493e-05,2]
[423099073,1779843044000,-500.0,8.219e-05,2]
[423099081,1779843044000,-628.86,8.493e-05,2]
[423099072,1779843044000,-500.0,8.219e-05,2]
[423099071,1779843044000,-265.97,8.219e-05,2]
[423099063,1779843044000,-500.0,8.219e-05,2]
[423099065,1779843044000,-500.0,8.219e-05,2]
[423099067,1779843044000,-500.0,8.219e-05,2]
[423099061,1779843044000,-500.0,8.219e-05,2]
[423099062,1779843044000,-500.0,8.219e-05,2]
[423099064,1779843044000,-500.0,8.219e-05,2]
[423099069,1779843044000,-500.0,8.219e-05,2]
[423099060,1779843044000,-500.0,8.219e-05,2]
[423099058,1779843044000,-500.0,8.219e-05,2]
[423099068,1779843044000,-500.0,8.219e-05,2]
[423099057,1779843044000,-500.0,8.219e-05,2]
[423099054,1779843044000,-3402.82628368,8.137e-05,2]
[423099055,1779843044000,-275.64096192,8.219e-05,2]
[423099056,1779843044000,-500.0,8.219e-05,2]
[423099053,1779843044000,-911.18917657,8.137e-05,2]
[423099076,1779843044000,-166.781182,8.219e-05,2]
[423099066,1779843044000,-500.0,8.219e-05,2]
[423099078,1779843044000,-500.0,8.219e-05,2]
[423099059,1779843044000,-500.0,8.219e-05,2]
[423099079,1779843044000,-160.0,8.306e-05,2]
[423099077,1779843044000,-500.0,8.219e-05,2]
[423099101,1779843044000,-500.0,8.493e-05,2]
[423099100,1779843044000,-380.95188842,8.493e-05,2]
[423099099,1779843044000,-119.04811158,8.493e-05,2]
[423099098,1779843044000,-500.0,8.493e-05,2]
[423099096,1779843044000,-3.93180671,8.493e-05,2]
[423099097,1779843044000,-496.06819329,8.493e-05,2]
[423099089,1779843044000,-435.09,8.493e-05,2]
[423099091,1779843044000,-249.81,8.493e-05,2]
[423099102,1779843044000,-156.43129158,8.767e-05,2]
[423099092,1779843044000,-500.0,8.493e-05,2]
[423099086,1779843044000,-554.28,8.493e-05,2]
[423099088,1779843044000,-500.0,8.493e-05,2]
[423099085,1779843044000,-466.48,8.493e-05,2]
[423099095,1779843044000,-378.02875252,8.493e-05,2]
[423099094,1779843044000,-35.32124748,8.493e-05,2]
[423099083,1779843044000,-500.0,8.493e-05,2]
[423099084,1779843044000,-500.0,8.493e-05,2]
[423099087,1779843044000,-500.0,8.493e-05,2]
[423099093,1779843044000,-500.0,8.493e-05,2]
[423099080,1779843044000,-161.76405772,8.306e-05,2]
[423099074,1779843044000,-500.0,8.219e-05,2]
[423099075,1779843044000,-427.19298057,8.219e-05,2]
[423099090,1779843044000,-500.0,8.493e-05,2]
[423099116,1779843047000,-500.0,8.767e-05,2]
[423099113,1779843047000,-442.51870842,8.767e-05,2]
[423099114,1779843047000,-220.03925725,8.767e-05,2]
[423099119,1779843047000,-185.0,8.891e-05,2]
[423099115,1779843047000,-500.0,8.767e-05,2]
[423099118,1779843047000,-264.96848835,8.775e-05,2]
[423099122,1779843047000,-241.24238255,9.315e-05,2]
[423099120,1779843047000,-443.0,8.891e-05,2]
[423099121,1779843047000,-500.0,9.041e-05,2]
[423099117,1779843047000,-3768.87995942,8.775e-05,2]
[423099127,1779844087000,160.0,0.00014609,30]
[423099151,1779844232000,-195.95769987,8.016e-05,2]
[423099147,1779844232000,-5000.0,7.568e-05,2]
[423099149,1779844232000,-386.56020013,7.776e-05,2]
[423099215,1779844238000,-704.220022,8.016e-05,2]
[423099243,1779844238000,-500.0,8.218e-05,2]
[423099242,1779844238000,-500.0,8.218e-05,2]
[423099236,1779844238000,-299.82227813,8.016e-05,2]
[423099238,1779844238000,-300.0,8.017e-05,2]
[423099245,1779844238000,-500.0,8.218e-05,2]
[423099249,1779844238000,-449.40497612,8.218e-05,2]
[423099247,1779844238000,-500.0,8.218e-05,2]
[423099251,1779844238000,-500.0,8.218e-05,2]
[423099253,1779844238000,-500.0,8.218e-05,2]
[423099255,1779844238000,-4842.0987,8.219e-05,2]
[423099256,1779844238000,-26.67404575,8.219e-05,2]
[423099240,1779844238000,-240.0,8.017e-05,2]
[423099441,1779844244000,-287.41003066,8.219e-05,2]
[423099450,1779844244000,-4528.01462359,8.219e-05,2]
[423099452,1779844244000,-4842.0987,8.219e-05,2]
[423099454,1779844244000,-4842.0987,8.219e-05,2]
[423099459,1779844244000,-4842.0987,8.219e-05,2]
[423099456,1779844244000,-4842.0987,8.219e-05,2]
[423099463,1779844244000,-500.0,8.219e-05,2]
[423099465,1779844244000,-1002.85121955,8.219e-05,2]
[423099467,1779844244000,-1066.09000754,8.219e-05,2]
[423099461,1779844244000,-3339.24748045,8.219e-05,2]
[423099574,1779844246000,-512.82,8.219e-05,2]
[423099573,1779844246000,-3776.00869246,8.219e-05,2]
[423099575,1779844246000,-500.0,8.219e-05,2]
[423099577,1779844246000,-500.0,8.219e-05,2]
[423099579,1779844246000,-402.52869956,8.219e-05,2]
[423099578,1779844246000,-500.0,8.219e-05,2]
[423099581,1779844246000,-500.0,8.219e-05,2]
[423099580,1779844246000,-500.0,8.219e-05,2]
[423099576,1779844246000,-598.61,8.219e-05,2]
[423099598,1779844247000,-500.0,8.219e-05,2]
[423099597,1779844247000,-276.12,8.219e-05,2]
[423099596,1779844247000,-500.0,8.219e-05,2]
[423099595,1779844247000,-455.8861757,8.219e-05,2]
[423099594,1779844247000,-500.0,8.219e-05,2]
[423099592,1779844247000,-500.0,8.219e-05,2]
[423099591,1779844247000,-434.47,8.219e-05,2]
[423099590,1779844247000,-551.31,8.219e-05,2]
[423099603,1779844247000,-500.0,8.219e-05,2]
[423099586,1779844247000,-500.0,8.219e-05,2]
[423099584,1779844247000,-264.52610168,8.219e-05,2]
[423099588,1779844247000,-500.0,8.219e-05,2]
[423099587,1779844247000,-586.28,8.219e-05,2]
[423099585,1779844247000,-235.47389832,8.219e-05,2]
[423099583,1779844247000,-500.0,8.219e-05,2]
[423099582,1779844247000,-200.40201733,8.219e-05,2]
[423099589,1779844247000,-280.70219472,8.219e-05,2]
[423099600,1779844247000,-500.0,8.219e-05,2]
[423099593,1779844247000,-500.0,8.219e-05,2]
[423099604,1779844247000,-500.0,8.219e-05,2]
[423099602,1779844247000,-500.0,8.219e-05,2]
[423099617,1779844247000,-500.0,8.493e-05,2]
[423099614,1779844247000,-300.0,8.381e-05,2]
[423099615,1779844247000,-600.0,8.382e-05,2]
[423099613,1779844247000,-160.0,8.306e-05,2]
[423099621,1779844247000,-182.6926531,8.493e-05,2]
[423099611,1779844247000,-160.0,8.306e-05,2]
[423099610,1779844247000,-160.0,8.306e-05,2]
[423099616,1779844247000,-500.0,8.493e-05,2]
[423099608,1779844247000,-105.09893382,8.219e-05,2]
[423099619,1779844247000,-500.0,8.493e-05,2]
[423099609,1779844247000,-500.0,8.219e-05,2]
[423099607,1779844247000,-394.90106618,8.219e-05,2]
[423099605,1779844247000,-404.72989219,8.219e-05,2]
[423099599,1779844247000,-500.0,8.219e-05,2]
[423099601,1779844247000,-500.0,8.219e-05,2]
[423099606,1779844247000,-500.0,8.219e-05,2]
[423099612,1779844247000,-161.76405772,8.306e-05,2]
[423099622,1779844267000,1830.35,0.00017808,120]
[423099625,1779844577000,152.0,0.0001477,30]
[423099632,1779845066000,170.0,0.00014839,30]
[423099649,1779845432000,-572.91685182,7.596e-05,2]
[423099669,1779845438000,-4427.08314818,7.596e-05,2]
[423099670,1779845438000,-383.44899613,7.712e-05,2]
[423099671,1779845438000,-260.0,7.817e-05,2]
[423099674,1779845438000,-166.781182,8e-05,2]
[423099675,1779845438000,-500.0,8.218e-05,2]
[423099672,1779845438000,-513.05665944,7.819e-05,2]
[423099676,1779845438000,-500.0,8.218e-05,2]
[423099673,1779845438000,-600.0,7.974e-05,2]
[423099683,1779845439000,-500.0,8.219e-05,2]
[423099678,1779845439000,-500.0,8.218e-05,2]
[423099680,1779845439000,-500.0,8.218e-05,2]
[423099679,1779845439000,-523.38039854,8.218e-05,2]
[423099681,1779845439000,-500.0,8.218e-05,2]
[423099677,1779845439000,-500.0,8.218e-05,2]
[423099682,1779845439000,-500.0,8.219e-05,2]
[423099688,1779845439000,-1092.66791638,8.219e-05,2]
[423099689,1779845439000,-1312.14564687,8.219e-05,2]
[423099686,1779845439000,-2652.21,8.219e-05,2]
[423099684,1779845439000,-500.0,8.219e-05,2]
[423099685,1779845439000,-2652.21,8.219e-05,2]
[423099687,1779845439000,-1559.54208362,8.219e-05,2]
[423099716,1779845441000,-500.0,8.219e-05,2]
[423099717,1779845441000,-500.0,8.219e-05,2]
[423099713,1779845441000,-500.0,8.219e-05,2]
[423099712,1779845441000,-102.65821554,8.219e-05,2]
[423099715,1779845441000,-500.0,8.219e-05,2]
[423099722,1779845441000,-500.0,8.219e-05,2]
[423099720,1779845441000,-500.0,8.219e-05,2]
[423099714,1779845441000,-500.0,8.219e-05,2]
[423099721,1779845441000,-500.0,8.219e-05,2]
[423099710,1779845441000,-1233.53410838,8.219e-05,2]
[423099708,1779845441000,-929.26969108,8.219e-05,2]
[423099705,1779845441000,-410.79466205,8.219e-05,2]
[423099709,1779845441000,-1418.67589162,8.219e-05,2]
[423099719,1779845441000,-671.79,8.219e-05,2]
[423099725,1779845441000,-421.06940216,8.219e-05,2]
[423099718,1779845441000,-628.72243689,8.219e-05,2]
[423099727,1779845441000,-475.13588275,8.219e-05,2]
[423099723,1779845441000,-500.0,8.219e-05,2]
[423099740,1779845441000,-478.9427607,8.493e-05,2]
[423099739,1779845441000,-500.0,8.493e-05,2]
[423099738,1779845441000,-500.0,8.493e-05,2]
[423099736,1779845441000,-442.31,8.493e-05,2]
[423099737,1779845441000,-500.0,8.493e-05,2]
[423099733,1779845441000,-500.0,8.493e-05,2]
[423099734,1779845441000,-500.0,8.493e-05,2]
[423099711,1779845441000,-397.34178446,8.219e-05,2]
[423099732,1779845441000,-300.0,8.382e-05,2]
[423099724,1779845441000,-500.0,8.219e-05,2]
[423099729,1779845441000,-3172.0195845,8.239e-05,2]
[423099731,1779845441000,-160.0,8.305e-05,2]
[423099728,1779845441000,-500.0,8.219e-05,2]
[423099726,1779845441000,-501.12946968,8.219e-05,2]
[423099735,1779845441000,-500.0,8.493e-05,2]
[423099730,1779845441000,-161.76405772,8.305e-05,2]
[423099751,1779845444000,-1722.9525255,8.137e-05,2]
[423099754,1779845444000,-361.8097648,8.493e-05,2]
[423099752,1779845444000,-21.0572393,8.493e-05,2]
[423099750,1779845444000,-3277.0474745,8.137e-05,2]
[423099757,1779845444000,-176.20308461,8.493e-05,2]
[423099753,1779845444000,-138.1902352,8.493e-05,2]
[423099756,1779845444000,-323.79691539,8.493e-05,2]
[423099755,1779845444000,-671.79,8.493e-05,2]
[423099759,1779845444000,-500.0,8.493e-05,2]
[423099758,1779845444000,-500.0,8.493e-05,2]
[423099765,1779845444000,-2638.92800738,8.699e-05,2]
[423099764,1779845444000,-700.80871384,8.699e-05,2]
[423099760,1779845444000,-500.0,8.493e-05,2]
[423099763,1779845444000,-1951.40128616,8.699e-05,2]
[423099761,1779845444000,-464.95448574,8.493e-05,2]
[423099762,1779845444000,-500.0,8.493e-05,2]
[423099791,1779845447000,-2337.36766655,8.699e-05,2]
[423099790,1779845447000,-2652.21,8.699e-05,2]
[423099789,1779845447000,-13.28199262,8.699e-05,2]
[423099788,1779845447000,-525.79034083,8.219e-05,2]
[423099792,1779845680000,1000.0,0.00017808,120]
[423099793,1779845704000,547.0,0.00017808,120]
[423099798,1779845904000,164.0,0.00014901,30]
[423099809,1779846086000,152.0,0.0001476,30]
[423099820,1779846201000,168.0,0.00014901,30]
[423099826,1779846564000,155.0,0.00014705,30]
[423099888,1779846631000,-576.63314209,7.231e-05,2]
[423099900,1779846631000,-532.80669207,7.231e-05,2]
[423099912,1779846632000,-253.62046094,7.231e-05,2]
[423099993,1779846638000,-756.81431939,7.231e-05,2]
[423100013,1779846640000,-500.0,7.618e-05,2]
[423100014,1779846640000,-343.39502077,7.619e-05,2]
[423100011,1779846640000,-123.47836442,7.618e-05,2]
[423100009,1779846640000,-327.73898951,7.618e-05,2]
[423100012,1779846640000,-376.52163558,7.618e-05,2]
[423100010,1779846640000,-172.26101049,7.618e-05,2]
[423100004,1779846640000,-193.673702,7.566e-05,2]
[423100007,1779846640000,-316.36627898,7.618e-05,2]
[423100008,1779846640000,-500.0,7.618e-05,2]
[423100006,1779846640000,-500.0,7.618e-05,2]
[423100005,1779846640000,-500.0,7.618e-05,2]
[423100002,1779846640000,-2880.12538551,7.231e-05,2]
[423100003,1779846640000,-376.07148365,7.379e-05,2]
[423100026,1779846643000,-304.0,7.619e-05,2]
[423100027,1779846643000,-332.8242452,7.619e-05,2]
[423100030,1779846643000,-579.29,8.219e-05,2]
[423100029,1779846643000,-490.43213645,8.219e-05,2]
[423100031,1779846643000,-332.59511792,8.219e-05,2]
[423100028,1779846643000,-18.59252399,8.219e-05,2]
[423100037,1779846644000,-500.0,8.219e-05,2]
[423100032,1779846644000,-500.0,8.219e-05,2]
[423100041,1779846644000,-160.0,8.307e-05,2]
[423100042,1779846644000,-325.517745,8.341e-05,2]
[423100040,1779846644000,-161.76405772,8.307e-05,2]
[423100039,1779846644000,-160.0,8.307e-05,2]
[423100043,1779846644000,-456.6596809,8.341e-05,2]
[423100034,1779846644000,-622.91,8.219e-05,2]
[423100036,1779846644000,-500.0,8.219e-05,2]
[423100033,1779846644000,-525.05514444,8.219e-05,2]
[423100038,1779846644000,-500.0,8.219e-05,2]
[423100048,1779846644000,-64.70773035,8.493e-05,2]
[423100049,1779846644000,-622.91,8.493e-05,2]
[423100050,1779846644000,-497.08052931,8.493e-05,2]
[423100047,1779846644000,-435.29226965,8.493e-05,2]
[423100046,1779846644000,-191.89366337,8.492e-05,2]
[423100052,1779846644000,-424.7614812,8.493e-05,2]
[423100044,1779846644000,-512.89309041,8.492e-05,2]
[423100045,1779846644000,-500.0,8.492e-05,2]
[423100051,1779846644000,-511.12348995,8.493e-05,2]
[423100035,1779846644000,-276.88142673,8.219e-05,2]
[423100059,1779846646000,-20543.27439274,8.7e-05,2]
[423100060,1779846646000,-5824.62473304,8.7e-05,2]
[423100058,1779846646000,-491.30931657,8.7e-05,2]
[423100057,1779846646000,-250.28276171,8.597e-05,2]
[423100056,1779846646000,-100.40792172,8.493e-05,2]
[423100065,1779846922000,176.0,0.00014901,30]
[423100067,1779847050000,990.91,0.00017808,120]
[423100131,1779847832000,-411.94375545,7.115e-05,2]
[423100142,1779847838000,-3495.8960503,7.115e-05,2]
[423100158,1779847840000,-1092.16019425,7.115e-05,2]
[423100159,1779847840000,-14.22495544,7.352e-05,2]
[423100182,1779847846000,-117.366138,8.4e-05,2]
[423100181,1779847846000,-354.32509854,7.352e-05,2]
[423100187,1779848146000,152.0,0.00014879,30]
[423100204,1779848411000,-1000.0,8.213e-05,2]
[423100206,1779848413000,-1000.0,8.213e-05,2]
[423100205,1779848413000,-1000.0,8.213e-05,2]
[423100207,1779848414000,-1000.0,8.213e-05,2]
[423100208,1779848414000,-1000.0,8.213e-05,2]
[423100211,1779848414000,-161.76405772,8.409e-05,2]
[423100212,1779848414000,-1.20302738,8.409e-05,2]
[423100210,1779848414000,-469.313862,8.4e-05,2]
[423100209,1779848414000,-367.7190529,8.296e-05,2]
[423100214,1779848415000,-300.0,8.492e-05,2]
[423100215,1779848415000,-300.0,8.492e-05,2]
[423100216,1779848415000,-241.20302738,8.492e-05,2]
[423100213,1779848415000,-158.79697262,8.409e-05,2]
[423100217,1779848415000,-265.19017452,8.492e-05,2]
[423100221,1779848415000,-849.9515368,8.493e-05,2]
[423100218,1779848415000,-276.34991706,8.492e-05,2]
[423100219,1779848415000,-458.45990842,8.493e-05,2]
[423100220,1779848415000,-150.0484632,8.493e-05,2]
[423100225,1779848416000,-1000.0,8.493e-05,2]
[423100224,1779848416000,-415.9180503,8.493e-05,2]
[423100223,1779848416000,-584.0819497,8.493e-05,2]
[423100222,1779848416000,-1000.0,8.493e-05,2]
[423100228,1779848417000,-1000.0,8.493e-05,2]
[423100227,1779848417000,-1000.0,8.493e-05,2]
[423100226,1779848417000,-1000.0,8.493e-05,2]
[423100231,1779848418000,-502.54582798,8.498e-05,2]
[423100232,1779848418000,-442.27345305,8.498e-05,2]
[423100229,1779848418000,-1000.0,8.493e-05,2]
[423100230,1779848418000,-55.18071897,8.493e-05,2]
[423100235,1779848418000,-439.23565773,8.498e-05,2]
[423100234,1779848418000,-500.0,8.498e-05,2]
[423100233,1779848418000,-60.76434227,8.498e-05,2]
[423100236,1779848419000,-60.76434227,8.498e-05,2]
[423100238,1779848419000,-437.97349328,8.498e-05,2]
[423100237,1779848419000,-501.26216445,8.498e-05,2]
[423100239,1779848419000,-62.02650672,8.498e-05,2]
[423100241,1779848419000,-437.97349328,8.498e-05,2]
[423100242,1779848419000,-1000.0,8.408e-05,2]
[423100240,1779848419000,-500.0,8.498e-05,2]
[423100243,1779848420000,-1000.0,8.408e-05,2]
[423100245,1779848421000,-1000.0,8.408e-05,2]
[423100244,1779848421000,-1000.0,8.408e-05,2]
[423100246,1779848422000,-1000.0,8.408e-05,2]
[423100287,1779848856000,-3493.93452112,8.001e-05,2]
[423100288,1779848856000,-1506.06547888,8.082e-05,2]
[423100290,1779848894000,-3000.0,8.082e-05,2]
[423100308,1779848961000,896.13,0.00015,30]
[423100619,1779849041000,-500.0,8.498e-05,2]
[423100621,1779849041000,-460.23328899,8.498e-05,2]
[423100624,1779849041000,-391.57256854,8.498e-05,2]
[423100617,1779849041000,-500.0,8.498e-05,2]
[423100615,1779849041000,-502.94760959,8.498e-05,2]
[423100618,1779849041000,-500.0,8.498e-05,2]
[423100616,1779849041000,-152.07760649,8.498e-05,2]
[423100610,1779849041000,-500.0,8.497e-05,2]
[423100612,1779849041000,-500.0,8.497e-05,2]
[423100611,1779849041000,-598.64357631,8.497e-05,2]
[423100613,1779849041000,-500.0,8.497e-05,2]
[423100614,1779849041000,-500.0,8.497e-05,2]
[423100609,1779849041000,-500.0,8.497e-05,2]
[423100608,1779849041000,-326.59334018,8.497e-05,2]
[423100606,1779849041000,-267.56308786,8.497e-05,2]
[423100602,1779849041000,-500.0,8.496e-05,2]
[423100600,1779849041000,-163.15814723,8.493e-05,2]
[423100597,1779849041000,-161.77362619,8.339e-05,2]
[423100603,1779849041000,-501.55618341,8.496e-05,2]
[423100599,1779849041000,-1208.78286187,8.398e-05,2]
[423100596,1779849041000,-386.8349588,8.327e-05,2]
[423100601,1779849041000,-500.0,8.496e-05,2]
[423100598,1779849041000,-160.0,8.339e-05,2]
[423100594,1779849041000,-363.36467184,8.204e-05,2]
[423100605,1779849041000,-500.0,8.497e-05,2]
[423100595,1779849041000,-300.0,8.242e-05,2]
[423100593,1779849041000,-4937.43985316,8.001e-05,2]
[423100592,1779849041000,-62.56014684,8.001e-05,2]
[423100604,1779849041000,-501.36752505,8.497e-05,2]
[423100620,1779849041000,-459.84379966,8.498e-05,2]
[423100607,1779849041000,-571.01,8.497e-05,2]
[423100623,1779849041000,-500.0,8.498e-05,2]
[423100653,1779849041000,-6840.59266907,8.498e-05,2]
[423100651,1779849041000,-168.14495033,8.498e-05,2]
[423100647,1779849041000,-503.37851436,8.498e-05,2]
[423100649,1779849041000,-501.1750264,8.498e-05,2]
[423100648,1779849041000,-510.36871016,8.498e-05,2]
[423100646,1779849041000,-500.0,8.498e-05,2]
[423100645,1779849041000,-500.0,8.498e-05,2]
[423100622,1779849041000,-311.16703478,8.498e-05,2]
[423100644,1779849041000,-500.98016963,8.498e-05,2]
[423100643,1779849041000,-501.41036795,8.498e-05,2]
[423100642,1779849041000,-501.55672137,8.498e-05,2]
[423100640,1779849041000,-503.89247967,8.498e-05,2]
[423100650,1779849041000,-501.44925211,8.498e-05,2]
[423100639,1779849041000,-500.61156931,8.498e-05,2]
[423100641,1779849041000,-503.16901664,8.498e-05,2]
[423100633,1779849041000,-500.0,8.498e-05,2]
[423100634,1779849041000,-500.93920244,8.498e-05,2]
[423100636,1779849041000,-500.0,8.498e-05,2]
[423100635,1779849041000,-500.0,8.498e-05,2]
[423100632,1779849041000,-500.48344418,8.498e-05,2]
[423100628,1779849041000,-500.0,8.498e-05,2]
[423100638,1779849041000,-502.14020622,8.498e-05,2]
[423100629,1779849041000,-500.0,8.498e-05,2]
[423100637,1779849041000,-500.0,8.498e-05,2]
[423100631,1779849041000,-500.0,8.498e-05,2]
[423100630,1779849041000,-605.32994295,8.498e-05,2]
[423100626,1779849041000,-502.48407316,8.498e-05,2]
[423100627,1779849041000,-505.20018478,8.498e-05,2]
[423100625,1779849041000,-239.36626699,8.498e-05,2]
[423100652,1779849041000,-500.0,8.498e-05,2]
[423100675,1779849043000,-55918.5114448,8.498e-05,2]
[423100676,1779849043000,-6088.8965821,8.498e-05,2]
[423100674,1779849043000,-426.43389473,8.498e-05,2]
[423100700,1779849047000,-502.13713159,8.598e-05,2]
[423100690,1779849047000,-508.62721733,8.498e-05,2]
[423100701,1779849047000,-502.02818212,8.598e-05,2]
[423100691,1779849047000,-16101.50086416,8.498e-05,2]
[423100689,1779849047000,-1041.7570263,8.398e-05,2]
[423100693,1779849047000,-503.32382918,8.499e-05,2]
[423100698,1779849047000,-1569.72250339,8.5e-05,7]
[423100692,1779849047000,-14211.18357109,8.498e-05,2]
[423100697,1779849047000,-502.06310109,8.499e-05,2]
[423100694,1779849047000,-501.58889202,8.499e-05,2]
[423100699,1779849047000,-503.25958687,8.598e-05,2]
[423100696,1779849047000,-500.0,8.499e-05,2]
[423100702,1779849047000,-503.3448621,8.598e-05,2]
[423100695,1779849047000,-603.53312042,8.499e-05,2]
[423100709,1779849047000,-501.33725297,8.598e-05,2]
[423100711,1779849047000,-503.21780088,8.598e-05,2]
[423100712,1779849047000,-502.4328802,8.598e-05,2]
[423100708,1779849047000,-501.12847162,8.598e-05,2]
[423100710,1779849047000,-470.38336326,8.598e-05,2]
[423100704,1779849047000,-500.0,8.598e-05,2]
[423100713,1779849047000,-214.37543404,8.598e-05,2]
[423100705,1779849047000,-559.3677771,8.598e-05,2]
[423100703,1779849047000,-502.85265102,8.598e-05,2]
[423100707,1779849047000,-501.35799044,8.598e-05,2]